Cogmind - Beta 13 @@@ ROGUE MODE // 2024.04.06 @ 17:18:50 Player: Ether Result: Destroyed by 07-OUD(R) with Subdweller Machine Gun Performance ------------- Evolutions (0) 0 Regions Visited (2) 400 Robots Destroyed (26) 130 Value Destroyed (504) 504 Prototype IDs (0) 0 Alien Tech Used (0) 0 Bonus (0) 0 TOTAL SCORE: 1034 Bonus ------- None Cogmind --------- Core Integrity 0/250 Matter 238/300 Energy 100/100 System Corruption 0% Temperature Cool (9) Movement Walking (190) Ox1 Location -10/Subcaves Parts ------- > --- POWER (1) -------- (None) > --- PROPULSION (2) --- Aluminum Leg > --- UTILITY (2) ------ Medium Storage Unit Improved Terrain Scanner > --- WEAPON (2) ------- Shotgun Shotgun > --- INVENTORY (10) --- Ion Engine Aluminum Leg Aluminum Leg Aluminum Leg Sensor Array Signal Interpreter Targeting Computer Shotgun Battle Cannon Peak State ------------ > --- POWER ------------ Light Nuclear Core > --- PROPULSION ------- Aluminum Leg Aluminum Leg > --- UTILITY ---------- Medium Storage Unit Improved Terrain Scanner > --- WEAPON ----------- Shotgun Shotgun > --- INVENTORY -------- Ion Engine Subdweller Power Source Aluminum Leg Aluminum Leg Aluminum Leg Sensor Array Signal Interpreter Targeting Computer Shotgun Shotgun [Rating: 14] Favorites ----------- Power Ion Engine Engine Ion Engine Power Core Light Nuclear Core Propulsion Aluminum Leg Leg Aluminum Leg Utility Improved Terrain Scanner Device Improved Terrain Scanner Storage Medium Storage Unit Hackware Hacking Suite Weapon Shotgun Energy Gun Medium Laser Ballistic Gun Shotgun Build | -11 -10 -10 ------- Run | Yrd Mat Sub Slots Evolved . | . . . Power . | . . . Propulsion . | . . . Utility . | . . . Weapon . | . . . Parts Attached 28 | 8 15 5 Power 5 | 1 2 2 Engine 4 | 1 2 1 Core 1 | . . 1 Reactor . | . . . Propulsion 6 | 2 2 2 Treads . | . . . Leg 6 | 2 2 2 Wheel . | . . . Hover . | . . . Flight . | . . . Utility 6 | 2 4 . Device 3 | 1 2 . Storage 2 | 1 1 . Processor . | . . . Hackware 1 | . 1 . Protection . | . . . Artifact . | . . . Weapon 11 | 3 7 1 Energy Gun 6 | 2 4 . Energy Cannon . | . . . Ballistic Gun 5 | 1 3 1 Ballistic Cannon . | . . . Launcher . | . . . Special Weapon . | . . . Impact Weapon . | . . . Slashing Weapon . | . . . Piercing Weapon . | . . . Special Melee Weapon . | . . . Unidentified Prototypes . | . . . Parts Lost 5 | . 2 3 Power 1 | . . 1 Propulsion 1 | . . 1 Utility 1 | . 1 . Weapon 2 | . 1 1 Highest Loss Streak 2 | . 1 2 To Critical Strikes . | . . . Average Slot Usage (%) 99 | . 99 99 Engine 11 | . 13 4 Core 2 | . . 9 Leg 27 | . 27 28 Device 13 | . 13 14 Storage 14 | . 14 14 Energy Gun 11 | . 15 . Ballistic Gun 16 | . 12 28 Naked Turns . | . . . Heaviest Build 22 | 15 22 22 Greatest Support 20 | 20 20 20 Greatest Overweight (x) 1 | 1 1 1 Average Overweight (x) . | . . 1 Largest Inventory Capacity 10 | 8 10 10 Average Capacity 9 | 7 9 10 Most Carried 10 | 8 10 10 Average Carried 8 | 4 9 9 Final Capacity 10 | 8 10 10 Final Carried 10 | 5 10 9 Class Distribution -------------------- 100% | Mutant Dominant Class ---------------- Mutant | -10/Materials Mutant | -10/Subcaves Resources | -11 -10 -10 ----------- Run | Yrd Mat Sub Matter Collected 632 | 280 199 153 Remotely . | . . . Salvage Created 650 | 112 416 122 Parts 59 | 14 31 14 Haulers Intercepted . | . . . Recyclers Shooed . | . . . Parts Field Recycled . | . . . Retrieved Matter . | . . . Parts Self-Destructed 10 | . . 10 Prevented . | . . . Kills | -11 -10 -10 ------- Run | Yrd Mat Sub Combat Hostiles Destroyed 18 | . 12 6 Guns 18 | . 12 6 Classes Destroyed 7 | 2 4 1 Worker 1 | 1 . . Tunneler 4 | 4 . . Operator 1 | . 1 . Watcher 2 | . 2 . Swarmer 9 | . 6 3 Grunt 6 | . 6 . Subdweller 3 | . . 3 Best Kill Streak 3 | 2 3 3 Combat Bots Only 3 | . 3 3 Max Kills in Single Turn 2 | 1 2 1 Gunslinging 1 | . 1 . Exploded . | . . . Melee . | . . . Uniques/NPCs Destroyed . | . . . Combat | -11 -10 -10 -------- Run | Yrd Mat Sub Hostile Shots Fired 100 | . 56 44 Missed 17 | . 8 9 Damage Taken 1155 | . 518 637 Core 267 | . 116 151 Absorbed by Shields . | . . . Regen/Repaired (Parts) 117 | . 117 . Core Remaining (%) 100 | 100 . . Volleys Fired 78 | 15 40 23 Largest 2 | 2 2 2 Hottest 100 | 90 100 46 Shots Fired 151 | 30 76 45 Gun 151 | 30 76 45 Cannon . | . . . Launcher . | . . . Special . | . . . Kinetic 61 | . 16 45 Thermal 65 | 15 50 . Explosive . | . . . Electromagnetic 25 | 15 10 . Robot Hit Streak 15 | 4 8 15 Robot Miss Streak 5 | 4 5 4 Penetration Max . | . . . Secondary Targets 2 | . 2 . Max Gunslinging Chain 1 | . 1 . Shots Hit Robots 95 | 14 46 35 Core Hits 40 | 4 23 13 Critical Kills . | . . . Critical Parts Destroyed . | . . . Critical Strikes 6 | . 6 . Burn 6 | . 6 . Melee Attacks . | . . . Impact . | . . . Slashing . | . . . Piercing . | . . . Sneak Attacks . | . . . Combat Hostiles . | . . . Follow-up Attacks . | . . . Damage Inflicted 1315 | 243 585 487 Guns 1276 | 204 585 487 Cannons . | . . . Explosions 39 | 39 . . Melee . | . . . Ramming . | . . . Kinetic 601 | . 114 487 Thermal 475 | 114 361 . Explosive . | . . . Electromagnetic 239 | 129 110 . Impact . | . . . Slashing . | . . . Piercing . | . . . Highest Corruption . | . . . Average Corruption . | . . . Corruption Purged . | . . . Corruption Blocked . | . . . Overload Shots . | . . . Overflow Damage 21 | 21 . . Projectiles . | . . . Explosions 21 | 21 . . Melee . | . . . Knockbacks . | . . . Impact . | . . . Kinetic . | . . . Secondary . | . . . Self-Inflicted Damage . | . . . Shots . | . . . Rammed . | . . . Targets Rammed . | . . . Kicked . | . . . Crushed . | . . . Highest Temperature 327 | 120 327 . Average Temperature 75 | 38 90 . Received Heat Transfer 303 | . 231 72 Siege Activations . | . . . Robots Corrupted . | . . . Combat Hostiles . | . . . Parts Fried 1 | . 1 . Impact Corruptions . | . . . Robots Melted . | . . . Combat Hostiles . | . . . Parts Melted 5 | . 5 . Heat Transferred 1789 | 272 1517 . Parts Sabotaged . | . . . Parts Stolen . | . . . Parts Stripped . | . . . Power Chain Reactions 1 | 1 . . Alert | -11 -10 -10 ------- Run | Yrd Mat Sub Peak Influence 198 | 25 198 . Initial 16 | . 16 . Average 43 | 9 48 . Maximum Alert Level . | . . . Low Security (%) 100 | 100 100 . Level 1 . | . . . Level 2 . | . . . Level 3 . | . . . Level 4 . | . . . Level 5 . | . . . High Security . | . . . Max Security . | . . . Squads Dispatched 1 | . 1 . Investigation . | . . . Extermination . | . . . Reinforcement 1 | . 1 . Assault . | . . . Garrison . | . . . Intercept . | . . . Searches Triggered . | . . . Construction Impeded . | . . . Haulers Reinforced . | . . . Active Scanning Responses . | . . . Cargo Convoy Interrupts . | . . . Stealth | -11 -10 -10 --------- Run | Yrd Mat Sub Distress Signals 1 | . 1 . Communications Jammed . | . . . Distress Signals . | . . . Times Spotted 23 | . 15 8 Peak Tracking Total 3 | . 3 3 Tactical Retreats . | . . . Traps | -11 -10 -10 ------- Run | Yrd Mat Sub Traps Triggered 1 | . 1 . Indirectly . | . . . Trap Hack Attempts . | . . . Triggered . | . . . Disarmed . | . . . Reprogrammed . | . . . Reused . | . . . Traps Extracted . | . . . Installed . | . . . Triggered . | . . . Machines | -11 -10 -10 ---------- Run | Yrd Mat Sub Machines Disabled . | . . . Max in Single Turn . | . . . Machines Repaired . | . . . Machines Dismantled . | . . . Machines Sabotaged . | . . . Overloaded Fab Kills . | . . . Hacking | -11 -10 -10 --------- Run | Yrd Mat Sub Machines Accessed 10 | . 10 . Terminals 7 | . 7 . Fabricators . | . . . Repair Stations 1 | . 1 . Recycling Units 2 | . 2 . Scanalyzers . | . . . Garrison Access . | . . . Total Hacks 32 | . 32 . Successful 21 | . 21 . Failed 11 | . 11 . Catastrophic 1 | . 1 . Database Lockouts . | . . . Manual 6 | . 6 . Terminals 21 | . 21 . Fabricators . | . . . Repair Stations 9 | . 9 . Recycling Units 2 | . 2 . Scanalyzers . | . . . Garrison Access . | . . . Terminal Hacks 13 | . 13 . Branch Access Points 1 | . 1 . Recycling Unit Index 1 | . 1 . Alert Level 3 | . 3 . Locate Traps 4 | . 4 . Dispatch Records 1 | . 1 . Transport Status 1 | . 1 . Zone Layout 2 | . 2 . Fabricator Hacks . | . . . Repair Station Hacks 6 | . 6 . Scan Component 3 | . 3 . Repair 3 | . 3 . Recycling Unit Hacks 2 | . 2 . Report Inventory 2 | . 2 . Scanalyzer . | . . . Garrison Access Hacks . | . . . Unauthorized Hacks . | . . . Terminals . | . . . Fabricators . | . . . Repair Stations . | . . . Recycling Units . | . . . Scanalyzers . | . . . Garrison Access . | . . . Data Cores Recovered . | . . . Used . | . . . Hacking Detections 8 | . 8 . Full Trace Events . | . . . Feedback Events . | . . . Feedback Blocked . | . . . Robot Schematics Acquired . | . . . Robots Built . | . . . Authchips . | . . . Time . | . . . Total Robot Build Rating . | . . . Part Schematics Acquired . | . . . Parts Built . | . . . Authchips . | . . . Time . | . . . Total Part Build Rating . | . . . Parts Repaired 3 | . 3 . Time 102 | . 102 . Parts Recycled . | . . . Recycled Matter . | . . . Retrieved Matter . | . . . Retrieved Components . | . . . Parts Scanalyzed . | . . . Part Schematics Acquired . | . . . Parts Damaged . | . . . Bothacking | -11 -10 -10 ------------ Run | Yrd Mat Sub Used RIF Installer . | . . . Robots Hacked . | . . . Non-combat . | . . . Combat . | . . . Robot Hacks Applied . | . . . Relay Couplers Released . | . . . Fabnet Peak Effective % . | . . . Robots Rewired . | . . . Allies Hacked . | . . . Hacks Repelled . | . . . Allies | -11 -10 -10 -------- Run | Yrd Mat Sub Total Allies . | . . . Largest Group . | . . . Highest-Rated Group . | . . . Highest-Rated Ally . | . . . Total Orders . | . . . Ally Attacks . | . . . Total Damage . | . . . Kills . | . . . Allies Corrupted . | . . . Allies Melted . | . . . Intel | -11 -10 -10 ------- Run | Yrd Mat Sub Robot Analysis Total . | . . . Derelict Logs Recovered . | . . . Drone Launches . | . . . Drone Recoveries . | . . . Exploration | -11 -10 -10 ------------- Run | Yrd Mat Sub Turns Passed 2591 | 260 1758 573 Spaces Moved 1387 | 166 969 252 Core 8 | 8 . . Treads . | . . . Legs 1379 | 158 969 252 Wheels . | . . . Hover . | . . . Flight . | . . . Fastest Speed 50 | 50 120 190 Average Speed 150 | 118 145 190 Slowest Speed 190 | 120 190 190 Overloaded Moves . | . . . Propulsion Burnouts . | . . . Robots Hopped . | . . . Cave-ins Triggered . | . . . Exploration Rate (%) 38 | 6 98 12 Regions Visited 2 Branch Regions 1 Pre-discovered Areas . | . . . Known Exits Taken . | . . . Unknown Exits Taken 2 | 1 1 . Scrap Searched . | . . . Spaces Dug . | . . . Terrain Destroyed 6 | 6 . . Melee . | . . . Projectile . | . . . AOE 6 | 6 . . Terrain Rammed . | . . . Walls Destroyed . | . . . Machines Disabled . | . . . Actions | -11 -10 -10 --------- Run | Yrd Mat Sub Total 1744 | 199 1244 301 Wait 201 | . 183 18 Move 1385 | 165 968 252 Hop . | . . . Pick Up 31 | 10 20 1 Fast Attach 8 | 2 6 . Attach 10 | 6 3 1 Detach 1 | 1 . . Swap 10 | . 6 4 Drop 20 | . 18 2 Fire 78 | 15 40 23 Melee . | . . . Ram . | . . . Kick . | . . . Crush . | . . . Escape Stasis . | . . . Rewire . | . . . Trap . | . . . Miscellaneous . | . . . Route ------- -11/Scrapyard -10/Materials (discovered 5 exits: [*Mat x3] / *Min / [*Sub]) -10/Subcaves History --------- Turn | Location | Event 4 | -11/Scrapyard | Discovered new exit (range 16) 261 | -11/Scrapyard | Entered Materials 300 | -10/Materials | Build established: Mutant 718 | -10/Materials | Repaired Aluminum Leg 758 | -10/Materials | Repaired Imp. Terrain Scanner 797 | -10/Materials | Repaired Lgt. Nuclear Core 957 | -10/Materials | Discovered new exit (range 7) 1165 | -10/Materials | Discovered new exit (range 7) 1403 | -10/Materials | Discovered new exit (range 9) 1521 | -10/Materials | Discovered new exit (range 15) 1619 | -10/Materials | Identified exit to Mines 2006 | -10/Materials | Discovered new exit (range 5) 2019 | -10/Materials | Entered Subcaves 2060 | -10/Subcaves | Core integrity fell below 50% 2416 | -10/Subcaves | Shifting Twisted Machinery released Flamer 2589 | -10/Subcaves | Core integrity fell below 20% 2592 | -10/Subcaves | Destroyed by 07-OUD(R) with Subdweller Machine Gun Last Messages --------------- 02159_ Acquired 9 matter. 02165_ Flight Unit fries itself beyond repair. 02165_ Acquired 10 matter. 02171_ Flight Unit fries itself beyond repair. 02187_ Acquired 9 matter. 02204_ Sub. Power Source shoots sparks and powers down. 02210_ Dropped Broken Sub. Power Source. 02295_ Acquired 15 matter. 02297_ Acquired 7 matter. 02325_ Acquired Battle Cannon. 02328_ H2-IB6(u) builds Twisted Machinery. Flamer falls loose from the Twisted Machinery. 02421_ KN-NUI(u) builds Twisted Machinery. 02465_ Shotgun destroyed. 02466_ BX-B51(R) destroyed. 02469_ Acquired 49 matter. 02473_ KN-NUI(u) builds Twisted Machinery. 02588_ Lgt. Nuclear Core destroyed. 02590_ Aluminum Leg destroyed. Map ----- +----------------------------------------------------+ | ??????????????# ##????????????? ??? ?##? | | ???????#??????## ####????? ???????????? ???? | | ??????#??????#?# #????????????????????? ???? | | ????????????#??## ##?? ?#???#?#???? ???#?????? | | ???????????????# #??????????????????????????? | | ???????????????# #?????????????#????????????? | | ???????????????# *##??????????????????????????? | | ???????????????## ##???????????????? ?????????? | | ???????????????## #??????"??"???? ???????????? | | ?????????????#?# ##??????#?#?????? ???? ?????? | | ???????????????# #???#??????????????????? ??? | | ???????????????# ##???????????????????#? ??? | | ???????????????## ##?#?????#?#????????? ??? | | ??#????????????## ####????#????#???####?? ??? | | ????#??????????# #??????#?#??#???#"$ ?? ##?? | | ??????????????## #????#######?????""#?? ""#?? | | ???????????????# ##??### #????#?#"###"" ??? | | ??????????#????# ##### #????###""#""##??? | | ???????????????# # ##???# """""###?? | | ??????????????## ####?# " "####? | | ???????????????## ## #?## " """ [ #? | | ????????????????##### ### ##?## "# | | ????????????#?????#?## #### ##### "## # # | | ?????????????????#???## ### #??# ###?#? | | ?????????????????????##RR ## #### ##?##?? | | ???????????#?????????#@ ### #????? | | ?????????????????????## ## ### #####???? | | ????????????#?? ?????## ### ## ##?##???? | | ????????????????? ?### #?## ## ##?????? | | ???????????????#?? #?#"""##### ## #????? | | ?????????????#??? ?#"""#### # ## #######??#?? | | ??????????????????? ""#### #####?????#???? | | ?????????????????? ""### & ##?#?#????? ? | | ????????????????? ""?#" & ######??###?? | | ???????????????? ]?" ?#" !### ##????# | | ????????????#??? "" ## "" ## ###?"" # | | ?????????????????? "" #### " # ### " # | | ?????????????????"?"" #"### "" " " | | ??????????????????"""" "" "" " """ | | ??????????????????" " "" # #"#"""""""### | | ?????????????????? #""|"" #######""""###?? | | ????????????????#??# """## #####?????# "##???? | | ?????????????????????????###???#????? ###???? | | ???????????????????#?????#?##???????? #????#? | | ?????????????????????????????#????? ? ##?????? | | ??????????????????????"???"????????#?###???#??? | | ????????????????????????? ???????? ?##???????? | | ??????????????????????????????##?????????#?#??? | | ???????????????#?????? ? ?????????????????????? | | ?????????????????????????? ???#???????????????? | +----------------------------------------------------+ Best States ------------- Heat Dissipation 25 Energy Generation 15 Energy Capacity 250 Matter Stores 300 Matter Capacity 300 Sight Range 16 Terrain Scan Range 16 Terrain Scan Density 10 Evasion (%) 55 Offensive Hacking 10 Item Schematics ----------------- None Robot Schematics ------------------ None Fabricated ------------ Nothing Alien Tech Used ----------------- None Achievements -------------- None Challenges ------------ None Game ------ Seed AssaultSkeletonGuard Manual? 0 Play Time 00:19:50 Cumulative 19.5 hours Start 2024.04.06 @ 17:01:43 End 2024.04.06 @ 17:18:50 Sessions 1 Manual Loads 0 Difficulty Rogue Special Mode None Game No. 52 Rogue 52 Adventurer 0 Explorer 0 Win Type - Total 0 Types 0/0/0/0/0/0/0/0/0 Lore% 17 Gallery% 23 Achievement% 16 Wizard Run 0 Options --------- Layout 1 ASCII 0 Keyboard 0 Movement Numpad Keybinds 0 Fullscreen 1 Font 24/Smallcaps Map View 50x35 Zoom Use 0% Tactical HUD 1 Map Filters NONE Filters NONE Steam 1 RUN: 075b7375-e58e-46a2-9461-f6f538cd48d3